fUSD/lending_fUSD_20250107
["ID","MTS","AMOUNT","RATE_DAILY","PERIOD"]
[348008726,1736265649320,500.0,9.861e-05,2]
[348008727,1736265649635,575.34,9.862e-05,2]
[348008728,1736265650071,500.0,9.861e-05,2]
[348008729,1736265650444,1322.55,9.862e-05,2]
[348008730,1736265651194,189.0,3.088e-05,2]
[348008731,1736265652137,500.0,9.861e-05,2]
[348008732,1736265653053,500.0,9.861e-05,2]
[348008733,1736265653249,594.45,9.861e-05,2]
[348008734,1736265654378,500.0,9.861e-05,2]
[348008735,1736265654669,500.0,9.862e-05,2]
[348008736,1736265654952,1950.02,9.861e-05,2]
[348008737,1736265655116,503.58333237,9.861e-05,2]
[348008738,1736265657450,500.0,9.861e-05,2]
[348008739,1736265659473,500.0,9.861e-05,2]
[348008740,1736265660770,1105.24,9.862e-05,2]
[348008741,1736265661680,4519.21,9.861e-05,2]
[348008742,1736265662626,761.13,9.861e-05,2]
[348008743,1736265662715,505.15826485,9.862e-05,2]
[348008744,1736265663191,1146.09,9.861e-05,2]
[348008745,1736265664428,500.0,9.861e-05,2]
[348008746,1736265667217,1017.63,9.861e-05,2]
[348008747,1736265668775,500.0,9.861e-05,2]
[348008748,1736265669942,3529.17,9.964e-05,2]
[348008749,1736265672090,502.00332804,9.862e-05,2]
[348008750,1736265672184,5168.19,9.862e-05,2]
[348008751,1736265672338,628.36,9.862e-05,2]
[348008752,1736265673004,2260.6,9.861e-05,2]
[348008753,1736265673692,500.0,9.862e-05,2]
[348008754,1736265674946,771.69,9.861e-05,2]
[348008755,1736265675283,511.58,9.861e-05,2]
[348008756,1736265675877,1292.49,9.861e-05,2]
[348008757,1736265676109,500.0,9.861e-05,2]
[348008758,1736265676190,782.91,9.861e-05,2]
[348008759,1736265677247,500.0,9.861e-05,2]
[348008760,1736265677759,500.0,9.862e-05,2]
[348008761,1736265678770,500.0,9.861e-05,2]
[348008762,1736265682903,8714.9,9.862e-05,2]
[348008763,1736265683186,1806.08,9.862e-05,2]
[348008764,1736265684408,500.0,9.861e-05,2]
[348008765,1736265684967,1868.77,9.861e-05,2]
[348008766,1736265685234,500.0,9.862e-05,2]
[348008767,1736265685491,1078.2,9.861e-05,2]
[348008768,1736265685583,326.04842979,9.861e-05,2]
[348008769,1736265687567,587.47,9.861e-05,2]
[348008770,1736265687640,501.43649926,9.861e-05,2]
[348008771,1736265688598,635.72,9.861e-05,2]
[348008772,1736265688636,500.0,9.862e-05,2]
[348008773,1736265689037,2013.1,9.862e-05,2]
[348008774,1736265689092,801.69,9.862e-05,2]
[348008775,1736265689274,500.0,9.861e-05,2]
[348008776,1736265690311,500.0,9.861e-05,2]
[348008777,1736265691377,943.05,9.861e-05,2]
[348008778,1736265691763,1457.8,9.861e-05,2]
[348008779,1736265692812,500.0,9.861e-05,2]
[348008780,1736265694305,500.0,9.861e-05,2]
[348008781,1736265697160,500.0,9.861e-05,2]
[348008782,1736265698286,500.0,9.862e-05,2]
[348008783,1736265698370,500.0,9.862e-05,2]
[348008784,1736265699419,2759134.26284891,0.0001,2]
[348008788,1736265791539,9824.0,5.481e-05,7]
[348008789,1736265791562,10000.0,5.481e-05,7]
[348008790,1736265791585,10000.0,5.481e-05,7]
[348008791,1736265791606,7210.0368004,5.481e-05,7]
[348008792,1736265799026,-228.91,9.262e-05,2]
[348008793,1736265799055,-150.0,9.525e-05,2]
[348008794,1736265799082,-150.0,9.829e-05,2]
[348008795,1736265799109,-300.0,9.86e-05,2]
[348008796,1736265799154,-150.0,9.86e-05,2]
[348008797,1736265799180,-500.0,9.861e-05,2]
[348008798,1736265799210,-532.1,9.861e-05,2]
[348008799,1736265799236,-578.55,9.861e-05,2]
[348008800,1736265799262,-1261.88,9.861e-05,2]
[348008801,1736265799291,-3548.67,9.861e-05,2]
[348008802,1736265799319,-500.0,9.861e-05,2]
[348008803,1736265799345,-500.0,9.861e-05,2]
[348008804,1736265799371,-500.0,9.861e-05,2]
[348008805,1736265799398,-840.38,9.861e-05,2]
[348008806,1736265799424,-500.0,9.861e-05,2]
[348008807,1736265799450,-500.0,9.861e-05,2]
[348008808,1736265799476,-500.0,9.861e-05,2]
[348008809,1736265799501,-500.0,9.861e-05,2]
[348008810,1736265799527,-500.0,9.861e-05,2]
[348008811,1736265799552,-500.0,9.861e-05,2]
[348008812,1736265799578,-500.0,9.861e-05,2]
[348008813,1736265799604,-924.29,9.861e-05,2]
[348008814,1736265799629,-191.25602465,9.861e-05,2]
[348008815,1736265799675,-200.04405743,9.861e-05,2]
[348008816,1736265799703,-570.6,9.861e-05,2]
[348008817,1736265799729,-500.0,9.861e-05,2]
[348008818,1736265799756,-1470.82,9.861e-05,2]
[348008819,1736265799785,-500.0,9.861e-05,2]
[348008820,1736265799810,-500.59,9.861e-05,2]
[348008821,1736265799836,-500.0,9.861e-05,2]
[348008822,1736265799863,-500.0,9.861e-05,2]
[348008823,1736265799887,-1666.42,9.861e-05,2]
[348008824,1736265799911,-157.87858191,9.861e-05,2]
[348008825,1736265799935,-500.0,9.861e-05,2]
[348008826,1736265799959,-588.52,9.861e-05,2]
[348008827,1736265799984,-871.22,9.861e-05,2]
[348008828,1736265800007,-585.73,9.861e-05,2]
[348008829,1736265800031,-500.0,9.861e-05,2]
[348008830,1736265800055,-209.77038097,9.861e-05,2]
[348008831,1736265800079,-500.0,9.861e-05,2]
[348008832,1736265800444,-839.9,9.861e-05,2]
[348008833,1736265800470,-946.33,9.861e-05,2]
[348008834,1736265800495,-500.0,9.861e-05,2]
[348008835,1736265800520,-500.0,9.861e-05,2]
[348008836,1736265800544,-500.0,9.861e-05,2]
[348008837,1736265800570,-500.0,9.861e-05,2]
[348008838,1736265800597,-1007.46,9.861e-05,2]
[348008839,1736265800622,-500.0,9.861e-05,2]
[348008840,1736265800654,-821.82,9.861e-05,2]
[348008841,1736265800683,-500.0,9.861e-05,2]
[348008842,1736265800713,-480.38089633,9.861e-05,2]
[348008843,1736265800741,-838.83,9.861e-05,2]
[348008844,1736265800768,-468.53758332,9.861e-05,2]
[348008845,1736265800795,-500.0,9.861e-05,2]
[348008846,1736265800826,-500.0,9.861e-05,2]
[348008847,1736265800854,-500.0,9.861e-05,2]
[348008848,1736265800881,-500.0,9.861e-05,2]
[348008849,1736265800915,-500.0,9.861e-05,2]
[348008850,1736265800943,-500.0,9.861e-05,2]
[348008851,1736265800969,-2444.6,9.861e-05,2]
[348008852,1736265800996,-500.0,9.861e-05,2]
[348008853,1736265801023,-500.0,9.861e-05,2]
[348008854,1736265801051,-500.0,9.861e-05,2]
[348008855,1736265801078,-500.0,9.861e-05,2]
[348008856,1736265801106,-500.0,9.861e-05,2]
[348008857,1736265801131,-715.22,9.861e-05,2]
[348008858,1736265801163,-500.0,9.861e-05,2]
[348008859,1736265801190,-500.0,9.861e-05,2]
[348008860,1736265801217,-500.0,9.861e-05,2]
[348008861,1736265801253,-500.0,9.861e-05,2]
[348008862,1736265801288,-500.0,9.862e-05,2]
[348008863,1736265801314,-500.0,9.862e-05,2]
[348008864,1736265801340,-502.94429785,9.862e-05,2]
[348008865,1736265801367,-1206.4,9.862e-05,2]
[348008866,1736265801392,-500.0,9.862e-05,2]
[348008867,1736265801423,-684.17,9.862e-05,2]
[348008868,1736265801455,-347.49354818,9.862e-05,2]
[348008869,1736265801480,-500.0,9.862e-05,2]
[348008870,1736265801506,-500.0,9.862e-05,2]
[348008871,1736265801532,-3349.6,9.862e-05,2]
[348008872,1736265801559,-500.0,9.862e-05,2]
[348008873,1736265801586,-500.0,9.862e-05,2]
[348008874,1736265801612,-500.0,9.862e-05,2]
[348008875,1736265801642,-500.0,9.862e-05,2]
[348008876,1736265801681,-4950.27,9.862e-05,2]
[348008877,1736265801710,-4612.54,9.862e-05,2]
[348008878,1736265801736,-500.0,9.862e-05,2]
[348008879,1736265801763,-500.0,9.862e-05,2]
[348008880,1736265801791,-621.47,9.862e-05,2]
[348008881,1736265801816,-500.0,9.862e-05,2]
[348008882,1736265801844,-2450.27,9.862e-05,2]
[348008883,1736265801870,-500.0,9.862e-05,2]
[348008884,1736265801902,-990.25,9.862e-05,2]
[348008885,1736265801928,-500.0,9.862e-05,2]
[348008886,1736265801956,-500.0,9.862e-05,2]
[348008887,1736265801982,-500.0,9.862e-05,2]
[348008888,1736265802007,-500.0,9.862e-05,2]
[348008889,1736265802033,-3652.62,9.862e-05,2]
[348008890,1736265802060,-500.0,9.862e-05,2]
[348008891,1736265802085,-920.08,9.862e-05,2]
[348008892,1736265802110,-500.0,9.862e-05,2]
[348008893,1736265802135,-658.42,9.862e-05,2]
[348008894,1736265802167,-500.0,9.862e-05,2]
[348008895,1736265802192,-500.0,9.862e-05,2]
[348008896,1736265802219,-500.0,9.862e-05,2]
[348008897,1736265802245,-500.0,9.862e-05,2]
[348008898,1736265802285,-500.0,9.862e-05,2]
[348008899,1736265802312,-544.4,9.862e-05,2]
[348008900,1736265802338,-800.0,9.9e-05,3]
[348008901,1736265802368,-8104.97,9.964e-05,2]
[348008902,1736265802401,-1206.06,9.964e-05,2]
[348008903,1736265802428,-1278.1,9.964e-05,2]
[348008904,1736265802457,-2158.68,9.964e-05,2]
[348008905,1736265802483,-5220.55462936,0.0001,2]
[348008906,1736265822154,153.0,6.849e-05,2]
[348008907,1736265822387,153.0,6.849e-05,2]
[348008908,1736265822637,153.0,6.849e-05,2]
[348008909,1736265823044,153.0,6.849e-05,2]
[348008910,1736265823291,153.0,6.849e-05,2]
[348008912,1736266001130,-271.80830239,8.9e-05,10]
[348009200,1736266240741,-1390.12237292,8.9e-05,10]
[348009202,1736266240751,-250.0,8.941e-05,2]
[348009204,1736266240761,-150.0,8.944e-05,2]
[348009206,1736266240771,-208.31801,8.944e-05,2]
[348009208,1736266240781,-1000.0,8.986e-05,2]
[348009210,1736266240791,-250.0,8.986e-05,2]
[348009212,1736266240802,-208.31801,8.987e-05,2]
[348009214,1736266240812,-300.0,9.074e-05,2]
[348009216,1736266240822,-23900.0,9.075e-05,2]
[348009218,1736266240832,-997.49,9.084e-05,2]
[348009220,1736266240841,-19570.32,9.15e-05,2]
[348009222,1736266240851,-150.0,9.511e-05,2]
[348009224,1736266240861,-150.0,9.539e-05,2]
[348009225,1736266240872,-381.96,9.589e-05,2]
[348009226,1736266240881,-150.0,9.63e-05,2]
[348009227,1736266240891,-150.0,9.667e-05,2]
[348009228,1736266240900,-7025.9023,9.761e-05,2]
[348009229,1736266240911,-1200.0,9.8e-05,3]
[348009230,1736266240921,-1000.0,9.86e-05,2]
[348009231,1736266240930,-150.0,9.86e-05,2]
[348009232,1736266240940,-500.0,9.86e-05,2]
[348009233,1736266240952,-1196.01,9.86e-05,2]
[348009234,1736266240966,-500.0,9.86e-05,2]
[348009235,1736266240978,-1072.23,9.86e-05,2]
[348009236,1736266240991,-500.0,9.86e-05,2]
[348009237,1736266241001,-500.0,9.861e-05,2]
[348009238,1736266241010,-500.0,9.861e-05,2]
[348009239,1736266241020,-500.0,9.861e-05,2]
[348009240,1736266241029,-500.0,9.861e-05,2]
[348009241,1736266241039,-500.0,9.861e-05,2]
[348009242,1736266241048,-500.0,9.861e-05,2]
[348009243,1736266241058,-500.0,9.861e-05,2]
[348009244,1736266241068,-500.0,9.861e-05,2]
[348009245,1736266241077,-500.0,9.861e-05,2]
[348009246,1736266241087,-500.0,9.861e-05,2]
[348009247,1736266241096,-500.0,9.861e-05,2]
[348009249,1736266241106,-500.0,9.861e-05,2]
[348009251,1736266241116,-506.45,9.861e-05,2]
[348009253,1736266241126,-500.0,9.861e-05,2]
[348009255,1736266241136,-574.89,9.861e-05,2]
[348009257,1736266241145,-502.36252508,9.861e-05,2]
[348009259,1736266241154,-500.0,9.861e-05,2]
[348009261,1736266241163,-2530.24,9.861e-05,2]
[348009263,1736266241173,-500.0,9.861e-05,2]
[348009265,1736266241182,-500.0,9.861e-05,2]
[348009267,1736266241192,-500.0,9.861e-05,2]
[348009269,1736266241201,-500.0,9.861e-05,2]
[348009271,1736266241212,-500.0,9.861e-05,2]
[348009273,1736266241222,-495.70536028,9.861e-05,2]
[348009275,1736266241232,-544.24,9.861e-05,2]
[348009277,1736266241241,-500.0,9.861e-05,2]
[348009279,1736266241250,-500.0,9.861e-05,2]
[348009281,1736266241260,-500.0,9.861e-05,2]
[348009283,1736266241269,-500.0,9.861e-05,2]
[348009285,1736266241280,-500.0,9.861e-05,2]
[348009287,1736266241289,-500.0,9.861e-05,2]
[348009288,1736266241298,-500.0,9.861e-05,2]
[348009290,1736266241307,-533.03277058,9.861e-05,2]
[348009292,1736266241317,-500.0,9.861e-05,2]
[348009294,1736266241326,-644.7614871,9.861e-05,2]
[348009296,1736266241335,-500.0,9.861e-05,2]
[348009298,1736266241345,-581.14434668,9.861e-05,2]
[348009300,1736266241354,-500.0,9.861e-05,2]
[348009302,1736266241364,-500.0,9.861e-05,2]
[348009304,1736266241373,-500.0,9.861e-05,2]
[348009305,1736266241383,-500.0,9.861e-05,2]
[348009306,1736266241393,-743.24,9.861e-05,2]
[348009307,1736266241403,-500.0,9.861e-05,2]
[348009308,1736266241412,-748.98,9.861e-05,2]
[348009309,1736266241422,-735.64,9.861e-05,2]
[348009310,1736266241433,-500.0,9.861e-05,2]
[348009311,1736266241443,-500.0,9.861e-05,2]
[348009312,1736266241452,-500.0,9.861e-05,2]
[348009313,1736266241463,-500.0,9.861e-05,2]
[348009314,1736266241472,-500.0,9.861e-05,2]
[348009315,1736266241481,-500.0,9.861e-05,2]
[348009316,1736266241491,-500.0,9.861e-05,2]
[348009317,1736266241500,-500.0,9.861e-05,2]
[348009319,1736266241509,-500.0,9.861e-05,2]
[348009321,1736266241519,-500.0,9.861e-05,2]
[348009323,1736266241528,-500.0,9.861e-05,2]
[348009325,1736266241538,-500.0,9.861e-05,2]
[348009327,1736266241547,-1245.73,9.861e-05,2]
[348009329,1736266241557,-500.0,9.861e-05,2]
[348009331,1736266241566,-500.0,9.861e-05,2]
[348009333,1736266241575,-500.0,9.861e-05,2]
[348009335,1736266241584,-699.64,9.861e-05,2]
[348009337,1736266241593,-500.0,9.861e-05,2]
[348009339,1736266241603,-500.0,9.861e-05,2]
[348009341,1736266241612,-500.0,9.861e-05,2]
[348009343,1736266241622,-948.64,9.861e-05,2]
[348009345,1736266241631,-900.38,9.861e-05,2]
[348009347,1736266241641,-526.08178114,9.861e-05,2]
[348009349,1736266241650,-500.0,9.861e-05,2]
[348009351,1736266241659,-500.0,9.861e-05,2]
[348009353,1736266241668,-250.22825636,9.861e-05,2]
[348009355,1736266241680,-500.0,9.861e-05,2]
[348009357,1736266241690,-500.0,9.861e-05,2]
[348009359,1736266241699,-500.57500642,9.861e-05,2]
[348009361,1736266241709,-683.35,9.861e-05,2]
[348009363,1736266241719,-500.0,9.861e-05,2]
[348009365,1736266241728,-500.0,9.861e-05,2]
[348009367,1736266241737,-3988.07,9.861e-05,2]
[348009388,1736266241747,-500.0,9.861e-05,2]
[348009391,1736266241943,-400.0,9.861e-05,2]
[348009393,1736266241953,-864.94,9.861e-05,2]
[348009395,1736266241965,-500.0,9.861e-05,2]
[348009397,1736266241976,-500.0,9.861e-05,2]
[348009399,1736266241985,-500.0,9.861e-05,2]
[348009401,1736266241995,-500.0,9.861e-05,2]
[348009403,1736266242006,-590.5,9.861e-05,2]
[348009405,1736266242015,-1382.69,9.861e-05,2]
[348009407,1736266242024,-500.0,9.861e-05,2]
[348009409,1736266242034,-500.0,9.861e-05,2]
[348009411,1736266242044,-500.0,9.861e-05,2]
[348009413,1736266242054,-1299.59,9.861e-05,2]
[348009415,1736266242063,-500.0,9.861e-05,2]
[348009417,1736266242073,-500.0,9.861e-05,2]
[348009419,1736266242083,-500.0,9.861e-05,2]
[348009421,1736266242092,-500.0,9.861e-05,2]
[348009423,1736266242102,-386.46317796,9.861e-05,2]
[348009425,1736266242111,-500.0,9.861e-05,2]
[348009427,1736266242121,-500.0,9.861e-05,2]
[348009429,1736266242130,-500.0,9.861e-05,2]
[348009431,1736266242139,-500.0,9.861e-05,2]
[348009433,1736266242148,-500.0,9.861e-05,2]
[348009435,1736266242158,-796.46,9.861e-05,2]
[348009437,1736266242167,-500.0,9.861e-05,2]
[348009439,1736266242177,-500.0,9.861e-05,2]
[348009441,1736266242187,-1117.09,9.861e-05,2]
[348009443,1736266242197,-600.0,9.861e-05,2]
[348009445,1736266242210,-500.0,9.861e-05,2]
[348009447,1736266242221,-500.0,9.861e-05,2]
[348009449,1736266242231,-500.0,9.861e-05,2]
[348009451,1736266242242,-550.77,9.861e-05,2]
[348009453,1736266242252,-500.0,9.861e-05,2]
[348009455,1736266242262,-500.0,9.861e-05,2]
[348009457,1736266242272,-540.55812474,9.861e-05,2]
[348009459,1736266242282,-500.0,9.861e-05,2]
[348009461,1736266242292,-930.41,9.861e-05,2]
[348009463,1736266242303,-500.0,9.861e-05,2]
[348009465,1736266242314,-524.07,9.861e-05,2]
[348009467,1736266242326,-500.0,9.861e-05,2]
[348009469,1736266242338,-682.9,9.861e-05,2]
[348009471,1736266242347,-500.0,9.861e-05,2]
[348009473,1736266242357,-500.0,9.861e-05,2]
[348009475,1736266242368,-500.0,9.861e-05,2]
[348009477,1736266242379,-553.39144641,9.861e-05,2]
[348009479,1736266242389,-2600.85,9.861e-05,2]
[348009481,1736266242398,-500.0,9.861e-05,2]
[348009483,1736266242407,-500.0,9.861e-05,2]
[348009485,1736266242417,-500.0,9.861e-05,2]
[348009487,1736266242426,-500.0,9.861e-05,2]
[348009489,1736266242436,-500.0,9.861e-05,2]
[348009491,1736266242445,-500.0,9.861e-05,2]
[348009493,1736266242455,-508.57,9.861e-05,2]
[348009496,1736266242470,-1209.02,9.861e-05,2]
[348009498,1736266242479,-500.0,9.861e-05,2]
[348009499,1736266242488,-500.0,9.861e-05,2]
[348009502,1736266242498,-793.19,9.861e-05,2]
[348009504,1736266242508,-500.0,9.861e-05,2]
[348009506,1736266242518,-500.0,9.861e-05,2]
[348009507,1736266242527,-501.04596101,9.861e-05,2]
[348009509,1736266242537,-729.25,9.861e-05,2]
[348009511,1736266242547,-779.71,9.861e-05,2]
[348009514,1736266242556,-500.0,9.861e-05,2]
[348009516,1736266242566,-844.39,9.861e-05,2]
[348009518,1736266242575,-500.0,9.861e-05,2]
[348009519,1736266242584,-500.0,9.861e-05,2]
[348009522,1736266242593,-500.0,9.861e-05,2]
[348009524,1736266242603,-1190.054877,9.861e-05,2]
[348009526,1736266242612,-500.0,9.861e-05,2]
[348009528,1736266242622,-1001.36,9.861e-05,2]
[348009530,1736266242631,-500.0,9.861e-05,2]
[348009532,1736266242640,-500.0,9.861e-05,2]
[348009533,1736266242649,-500.0,9.861e-05,2]
[348009536,1736266242659,-500.0,9.861e-05,2]
[348009537,1736266242668,-675.96,9.861e-05,2]
[348009540,1736266242680,-500.0,9.861e-05,2]
[348009542,1736266242689,-508.66,9.861e-05,2]
[348009544,1736266242699,-500.0,9.861e-05,2]
[348009546,1736266242713,-500.0,9.861e-05,2]
[348009548,1736266242723,-156.461569,9.861e-05,2]
[348009550,1736266242732,-961.49,9.861e-05,2]
[348009552,1736266242742,-500.0,9.861e-05,2]
[348009554,1736266242751,-500.0,9.861e-05,2]
[348009556,1736266242760,-500.0,9.861e-05,2]
[348009558,1736266242771,-157.7986,9.861e-05,2]
[348009560,1736266242781,-500.0,9.861e-05,2]
[348009562,1736266242790,-500.0,9.861e-05,2]
[348009564,1736266242801,-500.0,9.861e-05,2]
[348009566,1736266242811,-500.0,9.861e-05,2]
[348009568,1736266242821,-500.0,9.861e-05,2]
[348009570,1736266242830,-618.98,9.861e-05,2]
[348009572,1736266242839,-500.0,9.861e-05,2]
[348009574,1736266242848,-500.0,9.861e-05,2]
[348009577,1736266242858,-647.98,9.861e-05,2]
[348009579,1736266242867,-500.0,9.861e-05,2]
[348009581,1736266242877,-500.0,9.861e-05,2]
[348009583,1736266242886,-500.0,9.861e-05,2]
[348009585,1736266242895,-552.98,9.861e-05,2]
[348009587,1736266242904,-500.0,9.861e-05,2]
[348009590,1736266242913,-500.0,9.861e-05,2]
[348009593,1736266242923,-500.0,9.861e-05,2]
[348009595,1736266242932,-500.0,9.861e-05,2]
[348009597,1736266242941,-846.16,9.861e-05,2]
[348009599,1736266242950,-500.0,9.861e-05,2]
[348009601,1736266242962,-1387.59,9.861e-05,2]
[348009604,1736266242971,-988.530858,9.861e-05,2]
[348009607,1736266242981,-500.0,9.861e-05,2]
[348009609,1736266242991,-821.59,9.861e-05,2]
[348009612,1736266243001,-500.0,9.861e-05,2]
[348009615,1736266243010,-500.0,9.861e-05,2]
[348009617,1736266243019,-500.0,9.861e-05,2]
[348009619,1736266243029,-500.0,9.861e-05,2]
[348009621,1736266243038,-500.0,9.861e-05,2]
[348009623,1736266243048,-500.0,9.861e-05,2]
[348009625,1736266243057,-500.0,9.861e-05,2]
[348009627,1736266243066,-500.0,9.861e-05,2]
[348009629,1736266243077,-500.0,9.861e-05,2]
[348009631,1736266243087,-500.0,9.861e-05,2]
[348009633,1736266243097,-500.0,9.861e-05,2]
[348009635,1736266243106,-500.0,9.861e-05,2]
[348009639,1736266243116,-842.03,9.861e-05,2]
[348009642,1736266243125,-500.0,9.861e-05,2]
[348009646,1736266243134,-500.0,9.861e-05,2]
[348009649,1736266243144,-667.46,9.861e-05,2]
[348009651,1736266243154,-500.0,9.861e-05,2]
[348009653,1736266243163,-500.0,9.861e-05,2]
[348009655,1736266243173,-500.0,9.861e-05,2]
[348009656,1736266243182,-500.0,9.861e-05,2]
[348009658,1736266243191,-500.0,9.861e-05,2]
[348009660,1736266243201,-500.0,9.861e-05,2]
[348009662,1736266243213,-500.0,9.861e-05,2]
[348009664,1736266243222,-775.41,9.861e-05,2]
[348009666,1736266243232,-500.0,9.861e-05,2]
[348009668,1736266243242,-626.31,9.861e-05,2]
[348009670,1736266243251,-500.0,9.861e-05,2]
[348009672,1736266243260,-500.0,9.861e-05,2]
[348009674,1736266243270,-500.0,9.861e-05,2]
[348009676,1736266243279,-500.0,9.861e-05,2]
[348009678,1736266243288,-500.0,9.861e-05,2]
[348009680,1736266243297,-515.14,9.861e-05,2]
[348009682,1736266243307,-500.0,9.861e-05,2]
[348009684,1736266243316,-500.0,9.861e-05,2]
[348009686,1736266243326,-500.0,9.861e-05,2]
[348009688,1736266243335,-500.0,9.861e-05,2]
[348009690,1736266243344,-500.0,9.861e-05,2]
[348009692,1736266243353,-500.0,9.861e-05,2]
[348009694,1736266243362,-500.0,9.861e-05,2]
[348009696,1736266243371,-565.45,9.861e-05,2]
[348009698,1736266243381,-6646.29,9.861e-05,2]
[348009700,1736266243390,-500.0,9.861e-05,2]
[348009702,1736266243399,-500.0,9.861e-05,2]
[348009704,1736266243408,-221.01578604,9.861e-05,2]
[348009706,1736266243417,-500.0,9.861e-05,2]
[348009708,1736266243427,-500.0,9.861e-05,2]
[348009710,1736266243436,-500.0,9.861e-05,2]
[348009712,1736266243445,-500.0,9.861e-05,2]
[348009714,1736266243454,-500.0,9.861e-05,2]
[348009716,1736266243470,-505.86,9.861e-05,2]
[348009718,1736266243479,-500.0,9.861e-05,2]
[348009720,1736266243490,-3633.45,9.861e-05,2]
[348009722,1736266243500,-548.78843606,9.861e-05,2]
[348009724,1736266243509,-500.0,9.861e-05,2]
[348009726,1736266243519,-500.0,9.861e-05,2]
[348009728,1736266243529,-500.0,9.861e-05,2]
[348009730,1736266243539,-500.0,9.861e-05,2]
[348009732,1736266243548,-500.0,9.861e-05,2]
[348009734,1736266243558,-500.0,9.861e-05,2]
[348009736,1736266243568,-500.0,9.861e-05,2]
[348009738,1736266243577,-500.0,9.861e-05,2]
[348009740,1736266243587,-500.0,9.861e-05,2]
[348009742,1736266243596,-500.0,9.861e-05,2]
[348009744,1736266243605,-886.75,9.861e-05,2]
[348009746,1736266243615,-500.0,9.861e-05,2]
[348009748,1736266243626,-500.0,9.861e-05,2]
[348009750,1736266243635,-500.0,9.861e-05,2]
[348009752,1736266243644,-500.0,9.861e-05,2]
[348009754,1736266243653,-500.0,9.861e-05,2]
[348009756,1736266243662,-498.36,9.861e-05,2]
[348009758,1736266243672,-782.62,9.861e-05,2]
[348009760,1736266243682,-500.0,9.861e-05,2]
[348009762,1736266243692,-500.0,9.861e-05,2]
[348009764,1736266243704,-500.0,9.861e-05,2]
[348009766,1736266243717,-1088.21,9.861e-05,2]
[348009768,1736266243727,-500.0,9.861e-05,2]
[348009770,1736266243736,-939.12,9.861e-05,2]
[348009772,1736266243746,-500.0,9.861e-05,2]
[348009774,1736266243755,-500.0,9.861e-05,2]
[348009776,1736266243765,-1288.81,9.861e-05,2]
[348009780,1736266243774,-500.0,9.861e-05,2]
[348009783,1736266243784,-500.0,9.861e-05,2]
[348009787,1736266243794,-1052.21,9.861e-05,2]
[348009791,1736266243803,-500.0,9.861e-05,2]
[348009793,1736266243814,-500.0,9.861e-05,2]
[348009795,1736266243824,-500.0,9.861e-05,2]
[348009796,1736266243833,-530.04,9.861e-05,2]
[348009797,1736266243843,-500.0,9.861e-05,2]
[348009798,1736266243853,-2751.84,9.861e-05,2]
[348009799,1736266243863,-500.0,9.861e-05,2]
[348009800,1736266243873,-500.0,9.861e-05,2]
[348009801,1736266243883,-500.0,9.861e-05,2]
[348009802,1736266243892,-500.0,9.861e-05,2]
[348009803,1736266243901,-500.0,9.861e-05,2]
[348009804,1736266243910,-1048.51,9.861e-05,2]
[348009805,1736266243920,-500.0,9.861e-05,2]
[348009806,1736266243929,-500.0,9.861e-05,2]
[348009807,1736266243938,-500.0,9.861e-05,2]
[348009808,1736266243947,-500.0,9.861e-05,2]
[348009809,1736266243956,-500.0,9.861e-05,2]
[348009810,1736266243969,-500.0,9.861e-05,2]
[348009811,1736266243978,-500.0,9.861e-05,2]
[348009812,1736266243987,-500.0,9.861e-05,2]
[348009813,1736266243997,-500.0,9.861e-05,2]
[348009814,1736266244007,-500.0,9.861e-05,2]
[348009815,1736266244016,-921.51,9.861e-05,2]